bitfinex-derivatives/quotes_SOLF0:USTF0_20250131
["timestamp","ask_amount","ask_price","bid_price","bid_amount"]
[1738343761217,0.0303184,238.02,237.99,0.02853437]
[1738343761418,4.1998,238.07,238.01,4.2007]
[1738343761618,0.02933023,238.03,238.01,4.2007]
[1738343761913,4.2003,238.05,238.01,4.2007]
[1738343762113,0.02752421,238.04,237.99,0.02853437]
[1738343764919,0.02752421,238.04,238.0,11.46504518]
[1738343765110,74.77789422,238.16,238.03,11.46504518]
[1738343765310,4.1995,238.09,238.06,4.1998]
[1738343765516,11.46504518,238.15,238.03,11.46504518]
[1738343765721,11.46504518,238.15,238.0,11.46504518]
[1738343765922,11.46504518,238.15,238.03,4.2004]
[1738343766221,0.02676558,238.11,238.07,0.03088699]
[1738343768222,4.1995,238.09,238.07,0.03088699]
[1738343769223,4.1996,238.08,238.07,0.03088699]
[1738343771526,4.1996,238.08,238.07,8.699e-05]
[1738343771927,11.46504518,238.09,237.93,1.5801]
[1738343772122,11.46504518,238.05,237.94,4.2019]
[1738343773127,4.2012,238.0,237.97,0.02806639]
[1738343773320,0.03176153,238.02,237.97,0.02806639]
[1738343773526,11.49680671,238.02,237.97,0.02806639]
[1738343773725,4.2014,237.98,237.97,0.02806639]
[1738343774426,4.2009,238.01,237.97,0.02806639]
[1738343774626,0.03176153,238.02,237.97,0.02806639]
[1738343775127,4.2012,237.99,237.97,0.02806639]
[1738343775929,0.03176153,238.02,237.97,0.02806639]
[1738343776130,4.2014,237.98,237.97,0.02806639]
[1738343778135,4.2011,238.0,237.97,0.02806639]
[1738343779128,4.2013,237.99,237.97,0.02806639]
[1738343781734,0.03176153,238.02,237.97,0.02806639]
[1738343782131,0.03176153,238.02,237.99,11.46504518]
[1738343783736,0.03176153,238.02,238.01,4.2008]
[1738343784932,11.52773038,238.11,238.04,4.2003]
[1738343785634,4.1997,238.08,238.04,4.2003]
[1738343786229,4.23043278,238.08,238.04,4.23198207]
[1738343786834,0.03073278,238.08,238.04,4.23198207]
[1738343787036,4.1998,238.07,238.04,0.03168207]
[1738343788839,4.1998,238.07,238.04,4.23188207]
[1738343789034,4.23033278,238.08,238.04,4.23188207]
[1738343789338,4.23033278,238.08,238.04,0.03168207]
[1738343789540,0.03073278,238.08,238.04,0.03168207]
[1738343789938,0.03073278,238.08,238.06,4.1999]
[1738343790638,4.1998,238.07,238.04,4.23188207]
[1738343790839,0.03073278,238.08,238.04,0.03168207]
[1738343791436,4.1998,238.07,238.04,0.03168207]
[1738343791642,0.03073278,238.08,238.04,0.03168207]
[1738343792346,11.46504518,238.22,238.06,11.46504518]
[1738343792552,11.46504518,238.22,238.07,1.6024]
[1738343792553,0.75279058,238.21,238.07,1.6024]
[1738343793239,2.74,238.23,238.12,11.46504518]
[1738343793445,2.74,238.24,238.15,11.49410502]
[1738343793644,0.02908498,238.2,238.15,11.49410502]
[1738343793845,4.1977,238.19,238.15,15.69240502]
[1738343794045,0.02908498,238.2,238.15,11.49410502]
[1738343794248,4.1982,238.16,238.15,0.02905984]
[1738343796851,4.1982,238.16,238.15,5.984e-05]
[1738343797057,4.2,238.06,238.0,1.567]
[1738343797252,11.46504518,238.12,238.0,1.567]
[1738343797453,11.46504518,238.12,238.02,4.2006]
[1738343797662,4.1994,238.09,238.01,11.46504518]
[1738343797953,11.46504518,238.15,238.01,11.46504518]
[1738343798356,4.1996,238.08,238.06,0.03076077]
[1738343798553,0.02921959,238.1,238.06,0.03076077]
[1738343798851,7.3489221,238.1,238.06,0.03076077]
[1738343799048,4.1998,238.07,238.06,0.03076077]
[1738343799953,7.31970251,238.08,237.95,7.31970251]
[1738343800154,7.31970251,238.01,237.93,7.31970251]
[1738343800551,4.2014,237.98,237.95,7.31970251]
[1738343800854,11.44377138,238.06,237.92,11.44377138]
[1738343801255,0.03088075,238.01,237.97,0.0298704]
[1738343801657,0.03088075,238.01,237.98,4.2013]
[1738343802155,4.23168075,238.01,237.97,0.0298704]
[1738343802357,0.03088075,238.01,237.97,0.0298704]
[1738343803757,0.03088075,238.01,237.98,4.2013]
[1738343804458,0.03088075,238.01,237.97,0.0298704]
[1738343805557,4.2014,237.98,237.97,0.0298704]
[1738343807065,4.2012,238.0,237.97,0.0298704]
[1738343807256,0.03088075,238.01,237.97,0.0298704]
[1738343809457,4.2014,237.98,237.97,0.0298704]
[1738343811468,4.2014,237.98,237.97,7.04e-05]
[1738343817063,14.62507138,238.0,237.83,11.44377138]
[1738343817264,4.2032,237.88,237.83,4.2038]
[1738343817460,11.44377138,237.95,237.83,4.2038]
[1738343817665,14.18377138,237.95,237.83,4.2038]
[1738343818367,4.2031,237.88,237.87,0.02801694]
[1738343818569,0.03214467,237.91,237.87,0.02801694]
[1738343820567,4.2031,237.88,237.87,0.02801694]
[1738343823366,11.44377138,237.89,237.74,11.44377138]
[1738343823566,11.44377138,237.86,237.74,4.2056]
[1738343823773,11.44377138,237.86,237.71,11.44377138]
[1738343823970,4.2049,237.79,237.74,4.2055]
[1738343824169,11.44377138,237.86,237.74,4.2055]
[1738343824573,11.44377138,237.83,237.69,4.9094]
[1738343824772,0.02720251,237.82,237.78,0.02891608]
[1738343825373,4.2046,237.8,237.78,0.02891608]
[1738343825770,4.2047,237.79,237.78,0.02891608]
[1738343827174,11.44377138,237.8,237.62,13.02717138]
[1738343827373,11.44377138,237.76,237.66,4.2069]
[1738343827873,4.2058,237.73,237.66,4.2069]
[1738343828074,11.44377138,237.79,237.69,4.2063]
[1738343828374,0.02844934,237.72,237.67,0.02822361]
[1738343828674,4.23444934,237.72,237.67,0.02822361]
[1738343829075,0.02844934,237.72,237.67,0.02822361]
[1738343829575,0.02844934,237.72,237.68,4.2066]
[1738343830570,0.02844934,237.72,237.67,0.02822361]
[1738343830774,0.02844934,237.72,237.69,4.2065]
[1738343831870,0.02844934,237.72,237.71,4.2061]
[1738343833276,2.76,237.85,237.68,14.57047138]
[1738343833978,11.44377138,237.8,237.68,3.1267]
[1738343834178,4.2056,237.75,237.74,0.03159411]
[1738343835275,4.2052,237.77,237.74,0.03159411]
[1738343835480,0.02704278,237.78,237.74,0.03159411]
[1738343835778,4.2053,237.76,237.74,0.03159411]
[1738343835972,0.02704278,237.78,237.74,0.03159411]
[1738343836175,11.44377138,237.77,237.74,0.03159411]
[1738343836371,11.44377138,237.77,237.62,1.5834]
[1738343836573,11.44377138,237.72,237.64,4.2073]
[1738343836771,11.44377138,237.72,237.62,1.5834]
[1738343837182,4.2063,237.7,237.65,4.207]
[1738343837380,11.44377138,237.72,237.65,4.207]
[1738343837681,0.02821717,237.7,237.65,4.23619428]
[1738343838180,0.02821717,237.7,237.65,0.02919428]
[1738343840177,4.23471717,237.7,237.65,4.23619428]
[1738343840376,4.23471717,237.7,237.65,0.02919428]
[1738343840676,11.44377138,237.84,237.69,11.44377138]
[1738343840883,14.20377138,237.84,237.69,11.44377138]
[1738343841179,14.20377138,237.84,237.7,1.626]
[1738343841985,4.23175221,237.79,237.75,0.03134468]
[1738343842287,0.02695221,237.79,237.75,0.03134468]
[1738343842980,4.23175221,237.79,237.75,4.23674468]
[1738343843181,4.23175221,237.79,237.75,0.03134468]
[1738343843573,4.205,237.78,237.75,0.03134468]
[1738343843778,0.02695221,237.79,237.75,0.03134468]
[1738343844177,4.2053,237.76,237.75,0.03134468]
[1738343846685,4.2067,237.68,237.57,11.44377138]
[1738343847583,4.2067,237.68,237.64,4.2073]
[1738343847784,0.03072016,237.65,237.64,4.2073]
[1738343848180,11.44377138,237.75,237.6,11.47191966]
[1738343848385,11.44377138,237.78,237.64,11.44377138]
[1738343848587,11.44377138,237.78,237.65,3.1943]
[1738343849383,4.23480885,237.74,237.69,4.23602023]
[1738343849586,0.02900885,237.74,237.69,4.23602023]
[1738343849786,0.02900885,237.74,237.69,0.02962023]
[1738343850186,4.2063,237.7,237.69,0.02962023]
[1738343857697,4.2063,237.7,237.69,2.023e-05]
[1738343857898,25.64754276,237.72,237.52,11.44377138]
[1738343858099,11.44377138,237.66,237.52,13.09537138]
[1738343858294,11.44377138,237.66,237.57,4.2085]
[1738343858896,4.2081,237.61,237.56,4.2088]
[1738343859096,4.2081,237.61,237.59,0.03055122]
[1738343859395,0.02655236,237.64,237.59,0.03055122]
[1738343859599,4.2076,237.63,237.59,0.03055122]
[1738343859800,0.02655236,237.64,237.59,0.03055122]
[1738343860497,0.02655236,237.64,237.6,4.208]
[1738343860693,0.02655236,237.64,237.59,0.03055122]
[1738343861996,0.02655236,237.64,237.63,4.2076]
[1738343864496,0.02655236,237.64,237.62,4.2077]
[1738343865596,4.207,237.66,237.6,3.2003]
[1738343865899,11.44377138,237.72,237.65,4.207]
[1738343866296,2.76,237.74,237.65,4.207]
[1738343866603,4.2065,237.7,237.65,4.207]
[1738343866800,4.2065,237.7,237.67,0.02823699]
[1738343868896,4.2062,237.71,237.67,4.23503699]
[1738343869895,0.02653081,237.72,237.67,0.02823699]
[1738343870096,12.84826343,237.82,237.67,11.47200837]
[1738343870297,2.76,237.82,237.67,11.44377138]
[1738343870797,4.2049,237.78,237.73,4.2056]
[1738343870995,6.967,237.83,237.68,1.6683]
[1738343871301,4.2048,237.79,237.74,4.2055]
[1738343871502,0.02715921,237.78,237.74,4.2055]
[1738343871902,0.02715921,237.78,237.73,0.028056]
[1738343872201,0.02715921,237.78,237.75,4.2054]
[1738343872802,0.02715921,237.78,237.73,0.028056]
[1738343873803,0.02715921,237.78,237.76,4.2052]
[1738343874098,0.02715921,237.78,237.73,0.028056]
[1738343874402,0.02715921,237.78,237.77,4.2051]
[1738343874801,0.02715921,237.78,237.73,0.028056]
[1738343875804,11.47093059,237.78,237.73,0.028056]
[1738343876403,4.2056,237.74,237.73,0.028056]
[1738343883916,4.2056,237.74,237.73,0.028056]
[1738343884315,2.74,237.74,237.62,4.2077]
[1738343884513,11.44377138,237.69,237.55,11.44377138]
[1738343884713,11.44377138,237.78,237.64,11.44377138]
[1738343885012,86.3225226,237.84,237.7,11.44377138]
[1738343885216,86.3225226,237.84,237.71,1.6044]
[1738343885416,0.02661177,237.79,237.75,0.02759021]
[1738343886215,11.44377138,237.93,237.76,11.44377138]
[1738343886415,0.75237455,237.92,237.79,11.44377138]
[1738343886615,11.44377138,237.93,237.79,11.44377138]
[1738343887522,0.03207709,237.88,237.84,0.02761488]
[1738343888417,4.2035,237.86,237.84,0.02761488]
[1738343889117,11.44377138,237.87,237.71,3.2836]
[1738343889324,4.205,237.78,237.71,7.4896]
[1738343889824,11.44377138,237.82,237.71,7.4896]
[1738343890324,0.02947491,237.79,237.74,0.03037553]
[1738343890519,4.205,237.78,237.74,0.03037553]
[1738343890825,0.02947491,237.79,237.74,0.03037553]
[1738343891220,11.44377138,237.88,237.77,4.2049]
[1738343891522,11.44377138,237.91,237.76,11.44377138]
[1738343891825,11.44377138,237.91,237.77,4.2049]
[1738343892015,4.2038,237.85,237.76,11.44377138]
[1738343892214,11.44377138,237.91,237.79,4.2047]
[1738343892415,0.02722747,237.83,237.79,4.2047]
[1738343892823,0.02722747,237.83,237.8,4.2045]
[1738343893023,0.02722747,237.83,237.78,0.03024496]
[1738343893326,4.23122747,237.83,237.78,0.03024496]
[1738343894122,4.23122747,237.83,237.79,4.2047]
[1738343894520,4.23122747,237.83,237.78,0.03024496]
[1738343894726,0.02722747,237.83,237.78,0.03024496]
[1738343895527,4.2047,237.79,237.78,0.03024496]
[1738343900225,0.02722747,237.83,237.78,0.03024496]
[1738343901525,0.02722747,237.83,237.8,4.2045]
[1738343901725,0.02722747,237.83,237.78,0.03024496]
[1738343902831,0.02722747,237.83,237.8,4.2044]
[1738343903021,0.02722747,237.83,237.78,0.03024496]
[1738343903832,0.02722747,237.83,237.81,4.2044]
[1738343904126,0.02722747,237.83,237.78,0.03024496]
[1738343904332,11.53616478,237.94,237.79,18.34916936]
[1738343904530,77.57637328,237.97,237.8,1.5906]
[1738343904730,0.75321445,237.95,237.8,1.5906]
[1738343905331,74.83637328,237.97,237.8,1.5906]
[1738343905635,0.02665975,237.9,237.85,0.02863238]
[1738343906830,0.02665975,237.9,237.87,4.2032]
[1738343907032,0.02665975,237.9,237.85,0.02863238]
[1738343908040,4.22945975,237.9,237.86,4.2033]
[1738343909738,4.2032,237.88,237.85,4.23223238]
[1738343910333,0.02665975,237.9,237.85,4.23223238]
[1738343910642,0.02665975,237.9,237.86,4.2034]
[1738343911435,4.22955975,237.9,237.86,4.2034]
[1738343912738,0.02665975,237.9,237.85,0.02863238]
[1738343912934,0.02665975,237.9,237.89,4.203]
[1738343916435,0.02665975,237.9,237.87,4.2032]
[1738343917039,4.203,237.89,237.86,4.2033]
[1738343917243,0.02665975,237.9,237.85,0.02863238]
[1738343918241,0.02665975,237.9,237.89,4.203]
[1738343919248,74.83637328,237.97,237.93,4.2021]
[1738343919445,74.83637328,237.97,237.87,1.6145]
[1738343920449,0.02990872,237.94,237.9,0.0268053]
[1738343921545,0.02990872,237.94,237.91,4.2026]
[1738343921751,0.02990872,237.94,237.9,0.0268053]
[1738343922348,0.02990872,237.94,237.92,4.2023]
[1738343922847,0.02990872,237.94,237.9,0.0268053]
[1738343923048,4.23200872,237.94,237.9,4.2296053]
[1738343923241,0.02990872,237.94,237.9,0.0268053]
[1738343924349,0.02990872,237.94,237.93,4.2022]
[1738343925847,0.02990872,237.94,237.9,0.0268053]
[1738343926150,0.02990872,237.94,237.91,4.2026]
[1738343926349,0.02990872,237.94,237.9,0.0268053]
[1738343926651,0.02990872,237.94,237.92,4.2024]
[1738343926851,0.02990872,237.94,237.9,0.0268053]
[1738343927752,0.02990872,237.94,237.93,4.2022]
[1738343934956,0.02990872,237.94,237.91,4.2025]
[1738343935157,0.02990872,237.94,237.9,0.0268053]
[1738343935959,0.02990872,237.94,237.91,4.2026]
[1738343936257,0.02990872,237.94,237.9,0.0268053]
[1738343937258,0.02990872,237.94,237.91,4.2026]
[1738343938359,0.02990872,237.94,237.93,4.2022]
[1738343938559,0.02990872,237.94,237.9,0.0268053]
[1738343939256,0.02990872,237.94,237.92,4.2024]
[1738343939870,0.02990872,237.94,237.91,4.2025]
[1738343940462,0.02990872,237.94,237.9,0.0268053]
[1738343941359,0.02990872,237.94,237.91,4.2026]
[1738343941562,0.02990872,237.94,237.9,0.0268053]
[1738343941962,0.02990872,237.94,237.92,4.2023]
[1738343942666,0.02990872,237.94,237.93,4.2022]
[1738343944768,0.02990872,237.94,237.93,11.52922633]
[1738343945467,8.72e-06,237.94,237.93,11.52922633]
[1738343945772,7.32702633,238.03,238.0,4.2009]
[1738343946471,11.52752633,238.03,237.99,4.2012]
[1738343946671,11.5561514,238.03,237.99,4.22914347]
[1738343946865,7.3556514,238.03,237.99,0.02794347]
[1738343947170,7.32702633,238.01,237.99,0.02794347]
[1738343948268,0.02862507,238.03,238.02,4.2007]
[1738343949667,2.507e-05,238.03,238.02,4.2007]
[1738343955772,2.507e-05,238.03,237.99,0.02794347]
[1738343956768,4.20052507,238.03,237.99,0.02794347]
[1738343959382,2.507e-05,238.03,237.99,0.02794347]
[1738343959789,11.43695884,238.03,237.99,0.02794347]
[1738343960889,4.2008,238.01,237.99,0.02794347]
[1738343962293,4.20062507,238.03,237.99,0.02794347]
[1738343962489,2.507e-05,238.03,237.99,0.02794347]
[1738343962789,2.507e-05,238.03,237.99,11.46487724]
[1738343963090,2.507e-05,238.03,238.02,4.2007]
[1738343965591,2.507e-05,238.03,237.99,0.02794347]
[1738343966699,2.507e-05,238.03,238.0,4.2009]
[1738343967095,2.507e-05,238.03,237.99,0.02794347]
[1738343967696,2.507e-05,238.03,238.02,4.2007]
[1738343970898,2.507e-05,238.03,238.02,15.63763377]
[1738343971103,1.373,238.16,238.05,11.43693377]
[1738343971603,4.1984,238.15,238.08,4.1995]
[1738343971808,1.373,238.16,238.05,11.43693377]
[1738343972103,0.02674083,238.13,238.08,0.03139353]
[1738343972804,0.02674083,238.13,238.09,4.1993]
[1738343973099,0.02674083,238.13,238.08,0.03139353]
[1738343973305,4.1994,238.09,238.08,0.03139353]
[1738343973702,4.1994,238.09,237.97,1.3304]
[1738343973703,11.43693377,238.09,237.97,1.3304]
[1738343973903,4.2003,238.04,237.99,4.201]
[1738343974905,0.02675145,238.04,237.99,0.02933768]
[1738343975505,4.2007,238.02,237.99,0.02933768]
[1738343976201,0.02675145,238.04,237.99,0.02933768]
[1738343976407,4.2005,238.03,237.99,0.02933768]
[1738343976906,0.02675145,238.04,237.99,0.02933768]
[1738343977106,4.2006,238.03,237.99,0.02933768]
[1738343977903,0.02675145,238.04,237.99,0.02933768]
[1738343978110,0.02675145,238.04,237.99,4.23043768]
[1738343979204,4.22705145,238.04,237.99,4.23043768]
[1738343980209,0.02675145,238.04,237.99,0.02933768]
[1738343980605,4.2007,238.02,237.99,0.02933768]
[1738343982709,0.02675145,238.04,237.99,0.02933768]
[1738343983611,0.02675145,238.04,237.99,4.23043768]
[1738343983812,0.02675145,238.04,237.99,0.02933768]
[1738343984004,0.02675145,238.04,237.99,11.46627145]
[1738343984404,0.02675145,238.04,238.03,4.2005]
[1738343986620,0.02675145,238.04,237.99,11.46627145]
[1738343986815,0.02675145,238.04,237.99,0.02933768]
[1738343987618,0.02675145,238.04,238.0,4.201]
[1738343991219,0.02675145,238.04,237.99,0.02933768]
[1738343992721,11.43693377,238.03,237.99,0.02933768]
[1738343993419,4.2009,238.01,237.99,0.02933768]
[1738343995919,4.201,238.0,237.99,0.02933768]
[1738343996920,11.43693377,238.03,237.99,0.02933768]
[1738343997224,4.2009,238.01,237.99,0.02933768]
[1738343999030,4.201,238.0,237.99,0.02933768]
[1738343999227,15.63793377,238.0,237.99,0.02933768]
[1738343999726,11.43693377,238.0,237.85,2.6631]
[1738344000629,11.43693377,237.97,237.85,1.3317]
[1738344000828,4.2028,237.91,237.9,0.03229726]
[1738344001228,11.43693377,237.91,237.81,116.1459955]
[1738344001425,4.2037,237.85,237.81,116.1459955]
[1738344001631,11.43693377,237.88,237.81,116.1459955]
[1738344001924,11.43693377,237.85,237.81,116.1459955]
[1738344002322,11.43693377,237.85,237.81,116.17444426]
[1738344002528,11.46610587,237.85,237.81,116.17444426]
[1738344002732,4.2042,237.82,237.81,116.17444426]
[1738344002928,4.2042,237.82,237.81,0.02844876]
[1738344003128,11.43693377,237.82,237.73,116.1459955]
[1738344004332,0.02695138,237.8,237.75,0.03003369]
[1738344004731,11.43693377,237.79,237.75,0.03003369]
[1738344005334,4.2049,237.78,237.75,0.03003369]
[1738344005730,11.43693377,237.79,237.75,0.03003369]
[1738344005934,15.64223377,237.76,237.65,1.3365]
[1738344006233,11.43693377,237.8,237.66,11.43693377]
[1738344006631,12.78373377,237.84,237.7,11.43693377]
[1738344007128,0.03117809,237.79,237.75,0.02930871]
[1738344007630,0.03117809,237.79,237.75,4.23460871]
[1738344008426,0.03117809,237.79,237.77,4.205]
[1738344008631,0.03117809,237.79,237.75,0.02930871]
[1738344009537,0.03117809,237.79,237.78,4.2049]
[1738344010032,0.03117809,237.79,237.75,0.02930871]
[1738344010033,0.03117809,237.79,237.76,4.2051]
[1738344010237,0.03117809,237.79,237.75,0.02930871]
[1738344010429,11.43693377,237.78,237.75,0.02930871]
[1738344011034,4.2052,237.76,237.75,0.02930871]
[1738344013438,4.23607809,237.79,237.75,4.23470871]
[1738344013642,4.23607809,237.79,237.75,0.02930871]
[1738344013643,0.03117809,237.79,237.75,0.02930871]
[1738344014038,0.03117809,237.79,237.77,4.2049]
[1738344014937,0.03117809,237.79,237.78,4.2049]
[1738344015242,46.28357966,238.12,237.76,11.43693377]
[1738344015243,14.13173377,237.93,237.76,11.43693377]
[1738344015439,14.13173377,237.93,237.8,11.43693377]
[1738344015639,18.33413377,237.93,237.83,4.2038]
[1738344015835,11.43693377,237.84,237.71,12.88173377]
[1738344016344,0.03104782,237.8,237.75,0.02703172]
[1738344018745,0.03104782,237.8,237.76,4.2052]
[1738344019645,0.03104782,237.8,237.75,0.02703172]
[1738344019851,0.03104782,237.8,237.78,4.2048]
[1738344020643,0.03104782,237.8,237.79,4.2047]
[1738344021147,4.2032,237.88,237.84,4.2038]
[1738344021352,16.87173377,237.93,237.84,4.2038]
[1738344021651,14.13173377,237.93,237.78,1.3282]
[1738344021847,4.203,237.89,237.82,4.2041]
[1738344022042,11.43693377,237.9,237.78,1.3282]
[1738344022242,11.43693377,237.84,237.71,1.4448]
[1738344022448,4.2038,237.84,237.83,0.02714856]
[1738344022749,0.03003725,237.86,237.81,0.0265491]
[1738344023050,4.2044,237.81,237.76,4.2051]
[1738344023446,4.2044,237.81,237.76,4.2365166]
[1738344023647,4.23177156,237.81,237.76,4.2365166]
[1738344024540,4.23177156,237.81,237.77,4.205]
[1738344025242,0.02737156,237.81,237.76,0.0314166]
[1738344025549,0.02737156,237.81,237.76,11.46835037]
[1738344025749,2.74,237.91,237.76,11.46835037]
[1738344025750,4.2031,237.89,237.8,4.2045]
[1738344025950,14.17693377,237.91,237.76,11.43693377]
[1738344026149,11.43693377,237.88,237.73,11.43693377]
[1738344026450,4.2039,237.84,237.8,4.2044]
[1738344027049,0.02894247,237.84,237.81,4.2043]
[1738344027548,0.02894247,237.84,237.8,0.02907354]
[1738344027749,0.02894247,237.84,237.8,4.23357354]
[1738344028953,0.02894247,237.84,237.8,0.02907354]
[1738344030449,4.2044,237.81,237.8,0.02907354]
[1738344032754,11.43693377,237.75,237.66,6.20047996]
[1738344033853,4.206,237.72,237.68,0.03066232]
[1738344034047,0.02815205,237.73,237.68,0.03066232]
[1738344034254,4.2061,237.71,237.68,0.03066232]
[1738344035054,0.02815205,237.73,237.68,0.03066232]
[1738344035557,4.206,237.72,237.68,0.03066232]
[1738344035954,11.43693377,237.72,237.68,0.03066232]
[1738344036355,11.43693377,237.69,237.68,0.03066232]
[1738344036556,15.64343377,237.69,237.68,0.03066232]
[1738344037160,4.2065,237.69,237.68,0.03066232]
[1738344038057,11.43693377,237.72,237.68,0.03066232]
[1738344038257,4.2063,237.71,237.68,0.03066232]
[1738344041061,0.02815205,237.73,237.68,0.03066232]
[1738344041360,0.02815205,237.73,237.69,4.2064]
[1738344042155,0.02815205,237.73,237.71,4.2061]
[1738344042356,0.02815205,237.73,237.68,0.03066232]
[1738344042860,4.206,237.72,237.68,4.23716232]
[1738344043057,0.02815205,237.73,237.68,0.03066232]
[1738344045765,11.43693377,237.72,237.68,0.03066232]
[1738344045954,4.2063,237.7,237.68,0.03066232]
[1738344047262,11.43693377,237.72,237.68,0.03066232]
[1738344047452,4.2065,237.69,237.68,0.03066232]
[1738344048062,4.2063,237.71,237.68,0.03066232]
[1738344049062,11.43693377,237.72,237.68,0.03066232]
[1738344049261,4.2064,237.7,237.68,0.03066232]
[1738344050064,4.2061,237.71,237.68,0.03066232]
[1738344050870,11.43693377,237.72,237.68,0.03066232]
[1738344051167,4.2063,237.7,237.68,0.03066232]
[1738344051369,0.02815205,237.73,237.68,0.03066232]
[1738344051561,0.02815205,237.73,237.71,4.2061]
[1738344051761,0.02815205,237.73,237.68,0.03066232]
[1738344052064,0.02815205,237.73,237.7,4.2061]
[1738344053466,0.02815205,237.73,237.7,4.2062]
[1738344053961,0.02815205,237.73,237.68,0.03066232]
[1738344054265,0.02815205,237.73,237.71,4.2061]
[1738344057870,4.206,237.72,237.69,4.2065]
[1738344058069,4.206,237.72,237.68,0.03066232]
[1738344058362,4.23395205,237.73,237.68,0.03066232]
[1738344058568,4.23395205,237.73,237.7,4.2063]
[1738344058769,0.02815205,237.73,237.68,0.03066232]
[1738344059070,0.02815205,237.73,237.71,4.206]
[1738344059570,4.23395205,237.73,237.7,4.2063]
[1738344059771,0.02815205,237.73,237.68,0.03066232]
[1738344061570,0.02815205,237.73,237.69,4.2064]
[1738344061771,0.02815205,237.73,237.68,0.03066232]
[1738344062166,0.02815205,237.73,237.72,4.206]
[1738344064075,0.02815205,237.73,237.69,2.8163]
[1738344064274,22.97761946,237.87,237.72,11.43693377]
[1738344064764,4.2043,237.82,237.77,4.205]
[1738344064968,4.2043,237.82,237.72,11.43693377]
[1738344065369,0.02767961,237.79,237.75,0.03155423]
[1738344065567,0.02767961,237.79,237.77,4.205]
[1738344068566,0.02767961,237.79,237.78,4.2049]
[1738344070078,4.2036,237.86,237.81,4.2043]
[1738344070267,4.2036,237.86,237.75,11.468488]
[1738344070268,11.54068569,237.87,237.75,11.43693377]
[1738344070672,11.54068569,237.87,237.83,4.2039]
[1738344070873,11.43693377,237.9,237.75,11.43693377]
[1738344071077,4.203,237.89,237.84,4.2037]
[1738344071279,0.03045242,237.85,237.8,0.02691685]
[1738344071672,0.03045242,237.85,237.83,4.204]
[1738344072576,0.03045242,237.85,237.82,4.2042]
[1738344072884,0.03045242,237.85,237.8,0.02691685]
[1738344073780,11.43693377,237.84,237.8,0.02691685]
[1738344073978,4.2043,237.82,237.8,0.02691685]
[1738344074378,11.43693377,237.84,237.8,0.02691685]
[1738344075180,15.64133377,237.81,237.8,0.02691685]
[1738344075683,11.43693377,237.81,237.69,4.1756]
[1738344075876,4.2052,237.77,237.69,4.1756]
[1738344076777,4.2052,237.77,237.72,4.2058]
[1738344077082,4.23703108,237.75,237.71,0.03159312]
[1738344077985,4.2056,237.74,237.71,0.03159312]
[1738344079485,4.206,237.72,237.71,0.03159312]
[1738344079987,11.46856485,237.75,237.71,0.03159312]
[1738344080183,4.2058,237.74,237.71,0.03159312]
[1738344080788,0.03163108,237.75,237.73,4.2057]
[1738344081485,0.03163108,237.75,237.74,4.2056]
[1738344081681,0.03163108,237.75,237.71,0.03159312]
[1738344082384,0.03163108,237.75,237.71,4.23759312]
[1738344083086,0.03163108,237.75,237.71,0.03159312]
[1738344083986,4.2056,237.74,237.71,0.03159312]
[1738344084590,4.206,237.72,237.71,0.03159312]
[1738344086088,0.03163108,237.75,237.71,0.03159312]
[1738344086695,0.03163108,237.75,237.72,4.2059]
[1738344087092,4.23713108,237.75,237.71,0.03159312]
[1738344087295,0.03163108,237.75,237.71,0.03159312]
[1738344087595,4.2059,237.73,237.71,0.03159312]
[1738344088293,4.2056,237.74,237.71,0.03159312]
[1738344088490,0.03163108,237.75,237.71,4.23769312]
[1738344088795,4.2058,237.74,237.71,0.03159312]
[1738344088996,11.43693377,237.74,237.71,0.03159312]
[1738344089600,4.206,237.72,237.71,0.03159312]
[1738344090803,11.54877602,237.72,237.71,0.03159312]
[1738344091504,4.2072,237.66,237.6,7.34277602]
[1738344091703,7.34277602,237.68,237.64,4.2073]
[1738344091904,7.34277602,237.7,237.62,7.34277602]
[1738344092106,11.54927602,237.7,237.62,7.34277602]
[1738344092607,0.02923604,237.68,237.64,7.37418272]
[1738344093201,0.02923604,237.68,237.66,7.34277602]
[1738344093405,7.34277602,237.76,237.66,7.34277602]
[1738344093607,7.34277602,237.76,237.69,7.34277602]
[1738344094106,4.2054,237.75,237.7,4.2062]
[1738344094305,7.34277602,237.76,237.69,7.34277602]
[1738344094503,0.02767433,237.75,237.7,0.03002542]
[1738344096006,4.2061,237.71,237.7,0.03002542]
[1738344096709,0.02767433,237.75,237.7,0.03002542]
[1738344097407,4.2056,237.74,237.7,0.03002542]
[1738344097804,4.2061,237.71,237.7,0.03002542]